fUST/lending_fUST_20241226
["ID","MTS","AMOUNT","RATE_DAILY","PERIOD"]
[346663361,1735159851560,-151.0,0.00013273,2]
[346663364,1735159851570,-151.69787,0.00013273,2]
[346663365,1735159851579,-151.0,0.00013273,2]
[346663367,1735159851588,-151.0,0.00013273,2]
[346663369,1735159851598,-151.0,0.00013273,2]
[346663371,1735159851607,-189.698691,0.00013273,2]
[346663373,1735159851616,-189.698691,0.00013273,2]
[346663375,1735159851625,-279.32961,0.00013273,2]
[346663377,1735159851635,-279.32961,0.00013273,2]
[346663379,1735159851644,-254.872485,0.00013273,2]
[346663381,1735159851653,-254.872485,0.00013273,2]
[346663383,1735159851663,-151.0,0.00013273,2]
[346663385,1735159851673,-500.0,0.00013273,2]
[346663387,1735159851682,-274.397675,0.00013273,2]
[346663389,1735159851691,-274.397675,0.00013273,2]
[346663391,1735159851701,-187.886629,0.00013273,2]
[346663393,1735159851710,-187.886629,0.00013273,2]
[346663396,1735159851719,-151.0,0.00013273,2]
[346663398,1735159851728,-500.0,0.00013273,2]
[346663399,1735159851737,-151.0,0.00013273,2]
[346663401,1735159851747,-151.0,0.00013273,2]
[346663404,1735159851756,-862.598425,0.00013273,2]
[346663406,1735159851765,-862.598425,0.00013273,2]
[346663408,1735159851775,-862.598425,0.00013273,2]
[346663409,1735159851784,-862.598425,0.00013273,2]
[346663411,1735159851793,-500.0,0.00013273,2]
[346663413,1735159851803,-241.593755,0.00013273,2]
[346663416,1735159851812,-241.593755,0.00013273,2]
[346663418,1735159851821,-241.593755,0.00013273,2]
[346663420,1735159851831,-241.593755,0.00013273,2]
[346663422,1735159851840,-174.516358,0.00013273,2]
[346663424,1735159851850,-174.516358,0.00013273,2]
[346663426,1735159851858,-500.0,0.00013273,2]
[346663428,1735159851867,-500.0,0.00013273,2]
[346663430,1735159851877,-500.0,0.00013273,2]
[346663432,1735159851886,-280.947889,0.00013273,2]
[346663434,1735159851895,-280.947889,0.00013273,2]
[346663436,1735159851904,-500.0,0.00013273,2]
[346663438,1735159851915,-1802.918906,0.00013273,2]
[346663440,1735159851924,-1802.918906,0.00013273,2]
[346663442,1735159851933,-1802.918906,0.00013273,2]
[346663444,1735159851942,-1802.918906,0.00013273,2]
[346663446,1735159851951,-500.0,0.00013273,2]
[346663448,1735159851960,-500.0,0.00013273,2]
[346663450,1735159851969,-500.0,0.00013273,2]
[346663452,1735159851978,-500.0,0.00013273,2]
[346663454,1735159851987,-500.0,0.00013273,2]
[346663456,1735159851997,-151.0,0.00013273,2]
[346663457,1735159852006,-151.0,0.00013273,2]
[346663459,1735159852015,-151.0,0.00013273,2]
[346663461,1735159852024,-231.361111,0.00013273,2]
[346663463,1735159852033,-151.0,0.00013273,2]
[346663465,1735159852043,-151.0,0.00013273,2]
[346663468,1735159852053,-286.593904,0.00013273,2]
[346663470,1735159852062,-154.956363,0.00013273,2]
[346663471,1735159852071,-154.956363,0.00013273,2]
[346663473,1735159852080,-500.0,0.00013273,2]
[346663475,1735159852090,-2527.45,0.00013273,2]
[346663477,1735159852099,-500.0,0.00013273,2]
[346663479,1735159852109,-500.0,0.00013273,2]
[346663481,1735159852118,-500.0,0.00013273,2]
[346663483,1735159852128,-1476.30465,0.00013273,2]
[346663486,1735159852138,-500.0,0.00013273,2]
[346663487,1735159852149,-1476.30465,0.00013273,2]
[346663490,1735159852160,-1476.30465,0.00013273,2]
[346663491,1735159852169,-1476.30465,0.00013273,2]
[346663494,1735159852179,-355.73527,0.00013273,2]
[346663495,1735159852187,-485.602663,0.00013273,2]
[346663497,1735159852196,-485.602663,0.00013273,2]
[346663499,1735159852206,-500.0,0.00013273,2]
[346663502,1735159852215,-355.73527,0.00013273,2]
[346663503,1735159852224,-485.602663,0.00013273,2]
[346663505,1735159852234,-485.602663,0.00013273,2]
[346663508,1735159852243,-874.819974,0.00013273,2]
[346663510,1735159852252,-874.819974,0.00013273,2]
[346663512,1735159852261,-364.28608,0.00013273,2]
[346663513,1735159852271,-634.55,0.00013273,2]
[346663515,1735159852285,-364.28608,0.00013273,2]
[346663517,1735159852294,-313.141587,0.00013273,2]
[346663520,1735159852303,-541.09,0.00013273,2]
[346663522,1735159852312,-313.141587,0.00013273,2]
[346663524,1735159852322,-151.0,0.00013273,2]
[346663525,1735159852331,-500.0,0.00013273,2]
[346663528,1735159852340,-151.0,0.00013273,2]
[346663529,1735159852350,-500.0,0.00013273,2]
[346663532,1735159852360,-151.0,0.00013273,2]
[346663533,1735159852369,-151.0,0.00013273,2]
[346663536,1735159852378,-500.0,0.00013273,2]
[346663538,1735159852387,-500.0,0.00013273,2]
[346663539,1735159852397,-500.0,0.00013273,2]
[346663541,1735159852406,-500.0,0.00013273,2]
[346663544,1735159852416,-151.0,0.00013273,2]
[346663546,1735159852425,-151.0,0.00013273,2]
[346663548,1735159852434,-244.52,0.00013273,2]
[346663550,1735159852444,-151.0,0.00013273,2]
[346663552,1735159852453,-151.0,0.00013273,2]
[346663554,1735159852462,-500.0,0.00013273,2]
[346663556,1735159852473,-421.444504,0.00013273,2]
[346663558,1735159852482,-421.444504,0.00013273,2]
[346663560,1735159852491,-421.444504,0.00013273,2]
[346663562,1735159852500,-421.444504,0.00013273,2]
[346663564,1735159852510,-202.725635,0.00013273,2]
[346663566,1735159852519,-202.725635,0.00013273,2]
[346663568,1735159852528,-202.725635,0.00013273,2]
[346663570,1735159852537,-202.725635,0.00013273,2]
[346663572,1735159852546,-151.0,0.00013273,2]
[346663574,1735159852556,-11769.65,0.00013273,2]
[346663576,1735159852565,-2777.34,0.00013273,2]
[346663578,1735159852574,-289.51,0.00013274,2]
[346663580,1735159852583,-500.0,0.00013274,2]
[346663582,1735159852592,-254.872485,0.00013274,2]
[346663584,1735159852602,-281.46,0.00013274,2]
[346663586,1735159852611,-254.872485,0.00013274,2]
[346663588,1735159852620,-500.0,0.00013274,2]
[346663590,1735159852630,-500.0,0.00013274,2]
[346663592,1735159852639,-500.0,0.00013274,2]
[346663594,1735159852649,-500.0,0.00013274,2]
[346663596,1735159852658,-274.397675,0.00013274,2]
[346663598,1735159852667,-639.36,0.00013274,2]
[346663600,1735159852677,-274.397675,0.00013274,2]
[346663602,1735159852686,-370.11,0.00013274,2]
[346663604,1735159852695,-187.886629,0.00013274,2]
[346663606,1735159852705,-187.886629,0.00013274,2]
[346663608,1735159852714,-217.84,0.00013274,2]
[346663610,1735159852724,-151.0,0.00013274,2]
[346663612,1735159852733,-151.0,0.00013274,2]
[346663614,1735159852743,-500.0,0.00013274,2]
[346663616,1735159852752,-500.0,0.00013274,2]
[346663618,1735159852761,-500.0,0.00013274,2]
[346663620,1735159852771,-174.516358,0.00013274,2]
[346663622,1735159852780,-174.516358,0.00013274,2]
[346663624,1735159852790,-280.947889,0.00013274,2]
[346663626,1735159852799,-280.947889,0.00013274,2]
[346663628,1735159852809,-500.0,0.00013274,2]
[346663630,1735159852818,-500.0,0.00013274,2]
[346663632,1735159852828,-475.06,0.00013274,2]
[346663634,1735159852837,-500.0,0.00013274,2]
[346663636,1735159852846,-500.0,0.00013274,2]
[346663638,1735159852855,-736.613,0.000133,2]
[346663649,1735159852944,-151.0,0.00013395,2]
[346663651,1735159852956,-189.698691,0.00013395,2]
[346663653,1735159852966,-189.698691,0.00013395,2]
[346663655,1735159852976,-279.32961,0.00013395,2]
[346663657,1735159852985,-279.32961,0.00013395,2]
[346663659,1735159852994,-151.0,0.00013395,2]
[346663661,1735159853004,-2779.54,0.00013546,2]
[346663662,1735159853013,-982.24,0.00013546,2]
[346663663,1735159853023,-874.819974,0.00013546,2]
[346663664,1735159853033,-874.819974,0.00013546,2]
[346663665,1735159853043,-364.28608,0.00013546,2]
[346663666,1735159853053,-364.28608,0.00013546,2]
[346663667,1735159853063,-151.0,0.00013546,2]
[346663668,1735159853073,-151.0,0.00013546,2]
[346663669,1735159853082,-552.35,0.00013546,2]
[346663670,1735159853092,-1350.41,0.00013546,2]
[346663671,1735159853102,-500.0,0.00013546,2]
[346663672,1735159853112,-500.0,0.00013546,2]
[346663673,1735159853122,-500.0,0.00013546,2]
[346663674,1735159853132,-500.0,0.00013546,2]
[346663675,1735159853143,-516.57,0.00013546,2]
[346663676,1735159853152,-547.75,0.00013546,2]
[346663678,1735159853161,-346.77,0.00013546,2]
[346663680,1735159853171,-545.72,0.00013546,2]
[346663682,1735159853180,-500.0,0.00013546,2]
[346663684,1735159853190,-500.0,0.00013546,2]
[346663686,1735159853199,-151.0,0.00013547,2]
[346663688,1735159853208,-151.0,0.00013547,2]
[346663690,1735159853217,-151.0,0.00013547,2]
[346663691,1735159853226,-151.0,0.00013547,2]
[346663694,1735159853236,-187.330076,0.00013547,2]
[346663695,1735159853246,-151.0,0.00013547,2]
[346663697,1735159853255,-189.698691,0.00013547,2]
[346663699,1735159853265,-189.698691,0.00013547,2]
[346663702,1735159853276,-279.32961,0.00013547,2]
[346663704,1735159853287,-279.32961,0.00013547,2]
[346663706,1735159853297,-254.872485,0.00013547,2]
[346663708,1735159853306,-254.872485,0.00013547,2]
[346663710,1735159853315,-151.0,0.00013547,2]
[346663711,1735159853326,-500.0,0.00013547,2]
[346663712,1735159853335,-274.397675,0.00013547,2]
[346663713,1735159853344,-274.397675,0.00013547,2]
[346663714,1735159853355,-187.886629,0.00013547,2]
[346663715,1735159853365,-187.886629,0.00013547,2]
[346663716,1735159853374,-151.0,0.00013547,2]
[346663717,1735159853383,-220.26,0.00013547,2]
[346663718,1735159853392,-151.0,0.00013547,2]
[346663719,1735159853402,-862.598425,0.00013547,2]
[346663720,1735159853412,-862.598425,0.00013547,2]
[346663721,1735159853421,-500.0,0.00013547,2]
[346663722,1735159853430,-241.593755,0.00013547,2]
[346663723,1735159853439,-241.593755,0.00013547,2]
[346663724,1735159853448,-174.516358,0.00013547,2]
[346663725,1735159853458,-174.516358,0.00013547,2]
[346663726,1735159853467,-500.0,0.00013547,2]
[346663727,1735159853476,-500.0,0.00013547,2]
[346663728,1735159853485,-500.0,0.00013547,2]
[346663729,1735159853494,-280.947889,0.00013547,2]
[346663730,1735159853504,-280.947889,0.00013547,2]
[346663731,1735159853513,-500.0,0.00013547,2]
[346663732,1735159853521,-1802.918906,0.00013547,2]
[346663733,1735159853531,-1802.918906,0.00013547,2]
[346663734,1735159853540,-500.0,0.00013547,2]
[346663735,1735159853549,-500.0,0.00013547,2]
[346663736,1735159853558,-500.0,0.00013547,2]
[346663737,1735159853567,-500.0,0.00013547,2]
[346663738,1735159853575,-500.0,0.00013547,2]
[346663739,1735159853585,-151.0,0.00013547,2]
[346663740,1735159853595,-151.0,0.00013547,2]
[346663741,1735159853603,-154.956363,0.00013547,2]
[346663742,1735159853612,-154.956363,0.00013547,2]
[346663743,1735159853622,-154.956363,0.00013547,2]
[346663744,1735159853631,-154.956363,0.00013547,2]
[346663745,1735159853640,-500.0,0.00013547,2]
[346663747,1735159853650,-2527.45,0.00013547,2]
[346663749,1735159853659,-500.0,0.00013547,2]
[346663751,1735159853669,-500.0,0.00013547,2]
[346663753,1735159853678,-500.0,0.00013547,2]
[346663755,1735159853687,-453.0,0.00013547,2]
[346663757,1735159853697,-1476.30465,0.00013547,2]
[346663759,1735159853707,-1476.30465,0.00013547,2]
[346663761,1735159853716,-355.73527,0.00013547,2]
[346663762,1735159853726,-355.73527,0.00013547,2]
[346663764,1735159853735,-485.602663,0.00013547,2]
[346663766,1735159853744,-500.0,0.00013547,2]
[346663768,1735159853753,-355.73527,0.00013547,2]
[346663770,1735159853763,-355.73527,0.00013547,2]
[346663772,1735159853772,-485.602663,0.00013547,2]
[346663774,1735159853782,-874.819974,0.00013547,2]
[346663776,1735159853791,-874.819974,0.00013547,2]
[346663778,1735159853800,-364.28608,0.00013547,2]
[346663779,1735159853809,-364.28608,0.00013547,2]
[346663781,1735159853819,-313.141587,0.00013547,2]
[346663783,1735159853828,-313.141587,0.00013547,2]
[346663785,1735159853837,-313.141587,0.00013547,2]
[346663787,1735159853847,-313.141587,0.00013547,2]
[346663789,1735159853856,-500.0,0.00013547,2]
[346663791,1735159853865,-151.0,0.00013547,2]
[346663793,1735159853874,-275.26738,0.00013547,2]
[346663795,1735159853883,-500.0,0.00013547,2]
[346663797,1735159853894,-151.0,0.00013547,2]
[346663799,1735159853903,-508.14,0.00013547,2]
[346663801,1735159853912,-538.44,0.00013547,2]
[346663803,1735159853922,-500.0,0.00013547,2]
[346663805,1735159853932,-575.12,0.00013547,2]
[346663807,1735159853941,-151.0,0.00013547,2]
[346663809,1735159853950,-180.883762,0.00013547,2]
[346663811,1735159853959,-429.59,0.00013547,2]
[346663813,1735159853969,-421.444504,0.00013547,2]
[346663815,1735159853978,-421.444496,0.00013547,2]
[346663817,1735159853987,-202.725635,0.00013547,2]
[346663819,1735159853996,-202.725639,0.00013547,2]
[346663821,1735159854005,-151.0,0.00013547,2]
[346663823,1735159854014,-11769.65,0.00013547,2]
[346663824,1735159854023,-2777.34,0.00013547,2]
[346663826,1735159854033,-212.649084,0.00013548,2]
[346663828,1735159854042,-500.0,0.00013548,2]
[346663829,1735159854051,-500.0,0.00013548,2]
[346663831,1735159854060,-237.69,0.00013548,2]
[346663833,1735159854071,-500.0,0.00013548,2]
[346663834,1735159854080,-500.0,0.00013548,2]
[346663836,1735159854090,-151.0,0.00013548,2]
[346663838,1735159854099,-500.0,0.00013548,2]
[346663839,1735159854108,-862.598425,0.00013548,2]
[346663841,1735159854118,-862.598425,0.00013548,2]
[346663843,1735159854127,-500.0,0.00013548,2]
[346663844,1735159854136,-241.593755,0.00013548,2]
[346663846,1735159854146,-241.593755,0.00013548,2]
[346663847,1735159854155,-500.0,0.00013548,2]
[346663849,1735159854164,-500.0,0.00013548,2]
[346663851,1735159854174,-500.0,0.00013548,2]
[346663852,1735159854183,-1802.918906,0.00013548,2]
[346663854,1735159854193,-1802.918906,0.00013548,2]
[346663855,1735159854202,-151.0,0.00013548,2]
[346663857,1735159854212,-151.0,0.00013548,2]
[346663859,1735159854222,-1476.30465,0.00013548,2]
[346663861,1735159854232,-1476.30465,0.00013548,2]
[346663862,1735159854242,-485.602663,0.00013548,2]
[346663864,1735159854252,-485.602663,0.00013548,2]
[346663866,1735159854261,-500.0,0.00013548,2]
[346663867,1735159854270,-500.0,0.00013548,2]
[346663869,1735159854282,-500.0,0.00013662,2]
[346663871,1735159854291,-500.0,0.00013676,2]
[346663872,1735159854300,-500.0,0.00013688,2]
[346663874,1735159854310,-500.0,0.00013698,2]
[346663876,1735159854319,-500.0,0.00013698,2]
[346663878,1735159854329,-500.0,0.00013698,2]
[346663879,1735159854338,-500.0,0.00013698,2]
[346663881,1735159854347,-1000.0,0.00013699,2]
[346663882,1735159854356,-1000.0,0.00013699,2]
[346663884,1735159854366,-1000.0,0.00013699,2]
[346663885,1735159854375,-1000.0,0.00013699,2]
[346663886,1735159854384,-1000.0,0.00013699,2]
[346663888,1735159854394,-1000.0,0.00013699,2]
[346663890,1735159854403,-1000.0,0.00013699,2]
[346663891,1735159854412,-1000.0,0.00013699,2]
[346663893,1735159854420,-1000.0,0.00013699,2]
[346663894,1735159854429,-1000.0,0.00013699,2]
[346663896,1735159854439,-1000.0,0.00013699,2]
[346663898,1735159854448,-1000.0,0.00013699,2]
[346663900,1735159854457,-1000.0,0.00013699,2]
[346663901,1735159854466,-1000.0,0.00013699,2]
[346663903,1735159854475,-1000.0,0.00013699,2]
[346663905,1735159854484,-1000.0,0.00013699,2]
[346663906,1735159854493,-1000.0,0.00013699,2]
[346663908,1735159854502,-1000.0,0.00013699,2]
[346663910,1735159854512,-1000.0,0.00013699,2]
[346663912,1735159854521,-1000.0,0.00013699,2]
[346663913,1735159854530,-1000.0,0.00013699,2]
[346663915,1735159854539,-1000.0,0.00013699,2]
[346663917,1735159854548,-1000.0,0.00013699,2]
[346663919,1735159854557,-1000.0,0.00013699,2]
[346663920,1735159854566,-1000.0,0.00013699,2]
[346663922,1735159854575,-1000.0,0.00013699,2]
[346663924,1735159854585,-1000.0,0.00013699,2]
[346663926,1735159854593,-1000.0,0.00013699,2]
[346663927,1735159854603,-1000.0,0.00013699,2]
[346663929,1735159854612,-1000.0,0.00013699,2]
[346663931,1735159854621,-1000.0,0.00013699,2]
[346663932,1735159854629,-1000.0,0.00013699,2]
[346663934,1735159854639,-1000.0,0.00013699,2]
[346663936,1735159854649,-1000.0,0.00013699,2]
[346663938,1735159854658,-1000.0,0.00013699,2]
[346663939,1735159854667,-1000.0,0.00013699,2]
[346663941,1735159854677,-1000.0,0.00013699,2]
[346663943,1735159854686,-1000.0,0.00013699,2]
[346663945,1735159854695,-872.331798,0.00013699,2]
[346663946,1735159854704,-874.819974,0.00013699,2]
[346663948,1735159854714,-874.819967,0.00013699,2]
[346663950,1735159854724,-364.28608,0.00013699,2]
[346663952,1735159854733,-364.286082,0.00013699,2]
[346663953,1735159854743,-151.0,0.00013699,2]
[346663955,1735159854751,-151.0,0.00013717,2]
[346663957,1735159854760,-151.0,0.00013717,2]
[346663959,1735159854769,-189.698691,0.00013717,2]
[346663960,1735159854779,-189.698691,0.00013717,2]
[346663962,1735159854789,-279.32961,0.00013717,2]
[346663964,1735159854798,-279.32961,0.00013717,2]
[346663966,1735159854807,-254.872485,0.00013717,2]
[346663967,1735159854817,-254.872485,0.00013717,2]
[346663969,1735159854827,-151.0,0.00013717,2]
[346663971,1735159854836,-274.397675,0.00013717,2]
[346663973,1735159854846,-274.397675,0.00013717,2]
[346663974,1735159854855,-187.886629,0.00013717,2]
[346663976,1735159854864,-187.886629,0.00013717,2]
[346663978,1735159854873,-151.0,0.00013717,2]
[346663980,1735159854883,-174.516358,0.00013717,2]
[346663987,1735159854971,-174.516364,0.00013717,2]
[346663988,1735159854980,-280.947889,0.00013717,2]
[346663989,1735159854990,-280.947893,0.00013717,2]
[346663990,1735159854999,-587.0,0.00013734,2]
[346663992,1735159855008,-151.0,0.00013817,2]
[346663993,1735159855018,-179.98077066,0.0001382,2]
[346663994,1735159855027,-2779.54,0.0001382,2]
[346663995,1735159855037,-982.24,0.0001382,2]
[346663996,1735159855046,-552.35,0.0001382,2]
[346663997,1735159855056,-1350.41,0.0001382,2]
[346663998,1735159855066,-500.0,0.0001382,2]
[346663999,1735159855077,-500.0,0.0001382,2]
[346664000,1735159855087,-500.0,0.0001382,2]
[346664001,1735159855096,-500.0,0.0001382,2]
[346664002,1735159855107,-547.75,0.0001382,2]
[346664003,1735159855116,-516.57,0.0001382,2]
[346664004,1735159855126,-500.0,0.0001382,2]
[346664005,1735159855135,-500.0,0.0001382,2]
[346664006,1735159855144,-151.0,0.00013821,2]
[346664007,1735159855155,-151.0,0.00013821,2]
[346664008,1735159855165,-189.698691,0.00013821,2]
[346664009,1735159855175,-189.698691,0.00013821,2]
[346664010,1735159855185,-279.32961,0.00013821,2]
[346664011,1735159855195,-279.32961,0.00013821,2]
[346664012,1735159855204,-254.872485,0.00013821,2]
[346664013,1735159855214,-254.872485,0.00013821,2]
[346664014,1735159855223,-160.087137,0.00013821,2]
[346664015,1735159855233,-500.0,0.00013821,2]
[346664016,1735159855242,-274.397675,0.00013821,2]
[346664017,1735159855251,-274.397675,0.00013821,2]
[346664018,1735159855262,-187.886629,0.00013821,2]
[346664019,1735159855271,-187.886629,0.00013821,2]
[346664020,1735159855284,-151.0,0.00013821,2]
[346664021,1735159855293,-151.0,0.00013821,2]
[346664022,1735159855302,-862.598425,0.00013821,2]
[346664023,1735159855312,-862.598425,0.00013821,2]
[346664024,1735159855322,-862.598425,0.00013821,2]
[346664025,1735159855331,-862.598421,0.00013821,2]
[346664026,1735159855340,-500.0,0.00013821,2]
[346664027,1735159855350,-241.593755,0.00013821,2]
[346664028,1735159855359,-241.593755,0.00013821,2]
[346664029,1735159855369,-241.593755,0.00013821,2]
[346664030,1735159855377,-241.593761,0.00013821,2]
[346664031,1735159855387,-500.0,0.00013821,2]
[346664032,1735159855398,-500.0,0.00013821,2]
[346664033,1735159855408,-331.79,0.00013821,2]
[346664034,1735159855416,-543.77,0.00013821,2]
[346664035,1735159855426,-1802.918906,0.00013821,2]
[346664036,1735159855435,-1802.918912,0.00013821,2]
[346664037,1735159855444,-500.0,0.00013821,2]
[346664038,1735159855452,-500.0,0.00013821,2]
[346664039,1735159855461,-500.0,0.00013821,2]
[346664040,1735159855470,-500.0,0.00013821,2]
[346664041,1735159855479,-500.0,0.00013821,2]
[346664042,1735159855487,-151.0,0.00013821,2]
[346664043,1735159855497,-151.0,0.00013821,2]
[346664044,1735159855506,-154.956363,0.00013821,2]
[346664045,1735159855514,-154.956368,0.00013821,2]
[346664046,1735159855523,-500.0,0.00013821,2]
[346664047,1735159855532,-2527.45,0.00013821,2]
[346664048,1735159855541,-500.0,0.00013821,2]
[346664049,1735159855550,-500.0,0.00013821,2]
[346664050,1735159855559,-500.0,0.00013821,2]
[346664051,1735159855568,-1476.30465,0.00013821,2]
[346664052,1735159855577,-1476.30466,0.00013821,2]
[346664053,1735159855586,-355.73527,0.00013821,2]
[346664054,1735159855595,-485.602663,0.00013821,2]
[346664055,1735159855604,-500.0,0.00013821,2]
[346664056,1735159855612,-355.735261,0.00013821,2]
[346664057,1735159855621,-485.602662,0.00013821,2]
[346664058,1735159855630,-313.141587,0.00013821,2]
[346664059,1735159855639,-313.141588,0.00013821,2]
[346664060,1735159855649,-404.18,0.00013821,2]
[346664061,1735159855658,-500.0,0.00013821,2]
[346664062,1735159855667,-500.0,0.00013821,2]
[346664063,1735159855675,-11769.65,0.00013821,2]
[346664064,1735159855684,-2777.34,0.00013821,2]
[346664065,1735159855693,-151.0,0.00013822,2]
[346664066,1735159855702,-189.698691,0.00013822,2]
[346664067,1735159855712,-189.698691,0.00013822,2]
[346664068,1735159855721,-279.32961,0.00013822,2]
[346664069,1735159855730,-279.32961,0.00013822,2]
[346664070,1735159855739,-500.0,0.00013822,2]
[346664071,1735159855748,-254.872485,0.00013822,2]
[346664072,1735159855757,-254.872485,0.00013822,2]
[346664073,1735159855766,-500.0,0.00013822,2]
[346664074,1735159855775,-500.0,0.00013822,2]
[346664075,1735159855785,-500.0,0.00013822,2]
[346664076,1735159855793,-274.397675,0.00013822,2]
[346664077,1735159855802,-274.397675,0.00013822,2]
[346664078,1735159855811,-187.886629,0.00013822,2]
[346664080,1735159855821,-187.886629,0.00013822,2]
[346664082,1735159855830,-151.0,0.00013822,2]
[346664084,1735159855839,-151.0,0.00013822,2]
[346664086,1735159855849,-500.0,0.00013822,2]
[346664088,1735159855858,-500.0,0.00013822,2]
[346664090,1735159855868,-500.0,0.00013822,2]
[346664091,1735159855877,-500.0,0.00013822,2]
[346664092,1735159855887,-281.81,0.00013822,2]
[346664093,1735159855897,-634.53,0.00013822,2]
[346664094,1735159855906,-480.27,0.00013822,2]
[346664095,1735159855916,-270.0532496,0.00013859,2]
[346664096,1735159855926,-618.0,0.000139,2]
[346664097,1735159855936,-400.0,0.00013973,2]
[346664098,1735159855946,-151.0,0.00013999,2]
[346664099,1735159855956,-151.0,0.00013999,2]
[346664100,1735159855965,-151.0,0.00013999,2]
[346664101,1735159855974,-151.0,0.00013999,2]
[346664102,1735159855984,-227.367421,0.00013999,2]
[346664103,1735159855993,-706239.55053114,0.00014,4]
[346664196,1735161032064,-249.973889,0.00010622,2]
[346664198,1735161032073,-300.0,0.00010722,2]
[346664200,1735161032083,-300.0,0.00010722,2]
[346664202,1735161032092,-7095.98479676,0.00010723,2]
[346664204,1735161032104,-844.425,0.00010723,2]
[346664207,1735161032115,-809.20171661,0.00010723,2]
[346664209,1735161032127,-16150.38848663,0.00010723,2]
[346664211,1735161032135,-531.1370353,0.00010723,2]
[346664213,1735161032145,-500.0,0.00011312,2]
[346664215,1735161032154,-500.0,0.00011312,2]
[346664217,1735161032163,-500.0,0.00011312,2]
[346664219,1735161032172,-500.0,0.00011312,2]
[346664221,1735161032182,-500.0,0.00011312,2]
[346664223,1735161032191,-500.0,0.00011312,2]
[346664225,1735161032200,-500.0,0.00011312,2]
[346664227,1735161032209,-500.0,0.00011312,2]
[346664229,1735161032218,-500.0,0.00011312,2]
[346664231,1735161032227,-500.0,0.00011312,2]
[346664233,1735161032236,-500.0,0.00011312,2]
[346664235,1735161032245,-500.0,0.00011312,2]
[346664237,1735161032255,-500.0,0.00011312,2]
[346664239,1735161032265,-500.0,0.00011312,2]
[346664241,1735161032274,-500.0,0.00011312,2]
[346664243,1735161032283,-500.0,0.00011312,2]
[346664245,1735161032292,-500.0,0.00011312,2]
[346664247,1735161032301,-500.0,0.00011312,2]
[346664249,1735161032311,-500.0,0.00011312,2]
[346664251,1735161032320,-500.0,0.00011312,2]
[346664253,1735161032330,-500.0,0.00011312,2]
[346664255,1735161032340,-504.09092616,0.00011312,2]
[346664257,1735161032349,-523.78,0.00011312,2]
[346664259,1735161032358,-500.0,0.00011312,2]
[346664261,1735161032367,-514.97506644,0.00011312,2]
[346664263,1735161032378,-500.0,0.00011312,2]
[346664266,1735161032389,-500.0,0.00011312,2]
[346664268,1735161032398,-500.0,0.00011312,2]
[346664270,1735161032407,-500.0,0.00011312,2]
[346664272,1735161032417,-500.0,0.00011312,2]
[346664274,1735161032426,-500.0,0.00011312,2]
[346664276,1735161032435,-500.0,0.00011312,2]
[346664278,1735161032444,-500.0,0.00011312,2]
[346664280,1735161032454,-168.0,0.00011312,2]
[346664282,1735161032463,-500.0,0.00011312,2]
[346664284,1735161032472,-500.0,0.00011312,2]